[Event "POL-chT 2nd League-4 2020"]
[Site "Poronin"]
[Date "2020.09.08"]
[Round "4.2"]
[White "Kujawski, Adam"]
[Black "Wieczorek, Zbigniew"]
[Result "1-0"]
[ECO "B06"]
[WhiteElo "2201"]
[BlackElo "2208"]
[Annotator "ChessBase"]
[PlyCount "169"]
[EventDate "2020.09.05"]
[EventType "team-tourn"]
[EventCountry "POL"]
[SourceTitle "playchess.com"]
[Source "ChessBase"]
[SourceQuality "1"]
[TimeControl "40/5400+30:900+30"]

1. e4 {[%emt 0:00:00]} g6 {[%emt 0:00:00]} 2. d4 {[%emt 0:00:00]} Bg7 {[%emt 0:00:00]} 3. Nc3 {[%emt 0:00:05]} c6 {[%emt 0:00:00]} 4. h3 {[%emt 0:01:18]} d6 {[%emt 0:01:53]} 5. a4 {[%emt 0:04:17]} Nf6 {[%emt 0:03:25]} 6. Nf3 {[%emt 0:02:24]} O-O {[%emt 0:03:02]} 7. Be2 {[%emt 0:06:10]} Qc7 {[%emt 0:01:26]} 8. Be3 {[%emt 0:03:58]} Nbd7 {[%emt 0:01:44]} 9. Qd2 {[%emt 0:04:02]} e5 {[%emt 0:01:30]} 10. dxe5 {[%emt 0:08:49]} dxe5 {[%emt 0:00:29]} 11. O-O {[%emt 0:05:47]} Nh5 {[%emt 0:03:24]} 12. Rfd1 {[%emt 0:04:32]} Nf4 {[%emt 0:04:46]} 13. Bf1 {[%emt 0:01:32]} a5 {[%emt 0:05:51]} 14. Qd6 {[%emt 0:02:02]} Qxd6 {[%emt 0:07:27]} 15. Rxd6 {[%emt 0:00:05]} Ne6 {[%emt 0:00:58]} 16. Rad1 {[%emt 0:04:54]} Ndc5 {[%emt 0:03:48]} 17. Bc4 {[%emt 0:06:02]} Re8 {[%emt 0:04:42]} 18. Bxc5 {[%emt 0:03:37]} Nxc5 {[%emt 0:00:04]} 19. Ng5 {[%emt 0:00:29]} Be6 {[%emt 0:00:16]} 20. Nxe6 {[%emt 0:00:38]} fxe6 {[%emt 0:00:04]} 21. Ra1 {[%emt 0:15:49]} Bf8 {[%emt 0:02:35]} 22. Rdd1 {[%emt 0:00:33]} Kf7 {[%emt 0:04:47]} 23. f3 {[%emt 0:03:47]} Red8 {[%emt 0:01:17]} 24. Kf2 {[%emt 0:03:12]} Nd7 {[%emt 0:01:49]} 25. Ke2 {[%emt 0:02:15]} Bc5 {[%emt 0:02:15]} 26. Na2 {[%emt 0:03:27]} h5 {[%emt 0:06:40]} 27. c3 {[%emt 0:01:56]} h4 {[%emt 0:10:54]} 28. Nc1 {[%emt 0:02:31]} g5 {[%emt 0:15:34]} 29. Nd3 {[%emt 0:01:05]} Bb6 {[%emt 0:01:41]} 30. Rd2 {[%emt 0:00:59]} Kf6 {[%emt 0:00:26]} 31. Rad1 {[%emt 0:00:41]} Nf8 {[%emt 0:01:00]} 32. Kf1 {[%emt 0:02:21]} Be3 {[%emt 0:02:25]} 33. Re2 {[%emt 0:00:25]} Bb6 {[%emt 0:01:50]} 34. Ree1 {[%emt 0:02:49]} Ng6 {[%emt 0:01:41]} 35. Nc1 {[%emt 0:02:11]} Nf4 {[%emt 0:00:42]} 36. Ne2 {[%emt 0:00:13]} Nh5 {[%emt 0:00:27]} 37. Rd3 {[%emt 0:00:46]} Rxd3 {[%emt 0:01:57]} 38. Bxd3 {[%emt 0:00:02]} Rd8 {[%emt 0:02:52]} 39. Rd1 {[%emt 0:00:10]} Be3 {[%emt 0:01:39]} 40. Ke1 {[%emt 0:00:00]} Bf4 {[%emt 0:00:00]} 41. Bc2 {[%emt 0:04:04]} Bg3+ {[%emt 0:01:15]} 42. Kf1 {[%emt 0:00:26]} Rxd1+ {[%emt 0:00:18]} 43. Bxd1 {[%emt 0:00:04]} Bf4 {[%emt 0:00:58]} 44. Ke1 {[%emt 0:01:50]} Ke7 {[%emt 0:01:13]} 45. Bb3 {[%emt 0:02:30]} Kd6 {[%emt 0:00:49]} 46. Kd1 {[%emt 0:05:03]} Nf6 {[%emt 0:00:43]} 47. Bc4 {[%emt 0:04:31]} Nd7 {[%emt 0:00:45]} 48. b3 {[%emt 0:01:00]} Nc5 {[%emt 0:01:30]} 49. Kc2 {[%emt 0:00:11]} Be3 {[%emt 0:02:02]} 50. Kb2 {[%emt 0:00:40]} Nd7 {[%emt 0:01:16]} 51. Bd3 {[%emt 0:01:15]} Kc5 {[%emt 0:00:56]} 52. Bc4 {[%emt 0:00:40]} Nf8 {[%emt 0:00:23]} 53. Bd3 {[%emt 0:01:02]} b5 {[%emt 0:00:15]} 54. axb5 {[%emt 0:01:08]} cxb5 {[%emt 0:00:06]} 55. Ka3 {[%emt 0:00:14]} Bd2 {[%emt 0:00:32]} 56. c4 {[%emt 0:01:15]} Bb4+ {[%emt 0:02:50]} 57. Ka2 {[%emt 0:00:14]} bxc4 {[%emt 0:00:16]} 58. Bxc4 {[%emt 0:00:35]} a4 {[%emt 0:00:57]} 59. Ba6 {[%emt 0:00:56]} a3 {[%emt 0:04:21]} 60. Nc1 {[%emt 0:00:04]} Kd4 {[%emt 0:00:19]} 61. Nd3 {[%emt 0:00:10]} Bd6 {[%emt 0:00:14]} 62. b4 {[%emt 0:00:14]} Ng6 {[%emt 0:00:28]} 63. Kxa3 {[%emt 0:01:07]} Ke3 {[%emt 0:00:45]} 64. Kb3 {[%emt 0:00:28]} Nf4 {[%emt 0:02:20]} 65. Nxf4 {[%emt 0:00:29]} exf4 {[%emt 0:00:09]} 66. Bc8 {[%emt 0:00:24]} g4 {[%emt 0:00:13]} 67. fxg4 {[%emt 0:01:26]} Kf2 {[%emt 0:00:06]} 68. Bxe6 {[%emt 0:00:29]} Kxg2 {[%emt 0:00:08]} 69. g5 {[%emt 0:00:03]} f3 {[%emt 0:00:13]} 70. g6 {[%emt 0:00:05]} Be5 {[%emt 0:00:11]} 71. b5 {[%emt 0:00:06]} f2 {[%emt 0:00:05]} 72. Bc4 {[%emt 0:00:04]} Kxh3 {[%emt 0:00:53]} 73. b6 {[%emt 0:02:01]} Kg2 {[%emt 0:00:06]} 74. b7 {[%emt 0:00:03]} h3 {[%emt 0:00:09]} 75. b8=Q {[%emt 0:00:32]} Bxb8 {[%emt 0:00:04]} 76. g7 {[%emt 0:00:05]} h2 {[%emt 0:00:07]} 77. g8=Q+ {[%emt 0:00:04]} Bg3 {[%emt 0:00:04]} 78. e5 {[%emt 0:01:04]} f1=Q {[%emt 0:02:05]} 79. Bxf1+ {[%emt 0:00:22]} Kxf1 {[%emt 0:00:06]} 80. Qc4+ {[%emt 0:01:27]} Kg1 {[%emt 0:00:22]} 81. Qd4+ {[%emt 0:00:13]} Kf1 {[%emt 0:00:49]} 82. Qd3+ {[%emt 0:00:10]} Kf2 {[%emt 0:00:18]} 83. Qc2+ {[%emt 0:01:00]} Kf1 {[%emt 0:00:09]} 84. Qd1+ {[%emt 0:00:19]} Kg2 {[%emt 0:00:58]} 85. e6 {[%emt 0:00:24]} 1-0

[Event "POL-chT 2nd League-4 2020"]
[Site "Poronin"]
[Date "2020.09.08"]
[Round "4.3"]
[White "Jaworski, Miroslaw"]
[Black "Wisniewski, Adam"]
[Result "0-1"]
[ECO "E63"]
[WhiteElo "2196"]
[BlackElo "1934"]
[Annotator "ChessBase"]
[PlyCount "126"]
[EventDate "2020.09.05"]
[EventType "team-tourn"]
[EventCountry "POL"]
[SourceTitle "playchess.com"]
[Source "ChessBase"]
[SourceQuality "1"]
[TimeControl "40/5400+30:900+30"]

1. Nf3 {[%emt 0:00:00]} Nf6 {[%emt 0:00:00]} 2. c4 {[%emt 0:00:00]} g6 {[%emt 0:00:34]} 3. g3 {[%emt 0:00:48]} Bg7 {[%emt 0:00:18]} 4. Bg2 {[%emt 0:00:42]} O-O {[%emt 0:00:28]} 5. d4 {[%emt 0:00:15]} d6 {[%emt 0:00:42]} 6. O-O {[%emt 0:00:14]} a6 {[%emt 0:01:05]} 7. Nc3 {[%emt 0:00:20]} Nc6 {[%emt 0:02:11]} 8. Bf4 {[%emt 0:01:35]} h6 {[%emt 0:06:26]} 9. h3 {[%emt 0:02:33]} Kh7 {[%emt 0:00:27]} 10. Rc1 {[%emt 0:00:23]} Rb8 {[%emt 0:00:56]} 11. Qd2 {[%emt 0:00:49]} Bd7 {[%emt 0:01:47]} 12. b3 {[%emt 0:05:39]} Qc8 {[%emt 0:06:43]} 13. Kh2 {[%emt 0:00:26]} Nh5 {[%emt 0:08:41]} 14. Be3 {[%emt 0:03:55]} f5 {[%emt 0:00:34]} 15. d5 {[%emt 0:05:03]} Ne5 {[%emt 0:02:28]} 16. Nd4 {[%emt 0:02:10]} c5 {[%emt 0:05:09]} 17. dxc6 {[%emt 0:00:33]} Nxc6 {[%emt 0:00:48]} 18. Nd5 {[%emt 0:04:59]} Qd8 {[%emt 0:07:24]} 19. Nc2 {[%emt 0:20:58]} e6 {[%emt 0:12:59]} 20. Nb6 {[%emt 0:02:26]} f4 {[%emt 0:02:44]} 21. gxf4 {[%emt 0:00:22]} Nxf4 {[%emt 0:01:05]} 22. Bxf4 {[%emt 0:16:41]} Rxf4 {[%emt 0:00:14]} 23. e3 {[%emt 0:04:48]} Rf7 {[%emt 0:02:03]} 24. Nxd7 {[%emt 0:00:21]} Qxd7 {[%emt 0:01:40]} 25. Ne1 {[%emt 0:05:08]} Rbf8 {[%emt 0:01:28]} 26. Nd3 {[%emt 0:00:20]} e5 {[%emt 0:01:36]} 27. Be4 {[%emt 0:01:32]} Rf3 {[%emt 0:05:04]} 28. Bxf3 {[%emt 0:03:46]} Rxf3 {[%emt 0:00:10]} 29. Ne1 {[%emt 0:00:06]} Rxh3+ {[%emt 0:02:59]} 30. Kg1 {[%emt 0:00:18]} Qg4+ {[%emt 0:00:27]} 31. Ng2 {[%emt 0:00:12]} e4 {[%emt 0:02:02]} 32. Qd1 {[%emt 0:00:41]} Rf3 {[%emt 0:01:29]} 33. Re1 {[%emt 0:04:29]} Be5 {[%emt 0:03:27]} 34. c5 {[%emt 0:00:19]} Qh3 {[%emt 0:03:22]} 35. Nf4 {[%emt 0:00:41]} Qh4 {[%emt 0:05:18]} 36. Rc2 {[%emt 0:00:36]} Nb4 {[%emt 0:02:44]} 37. cxd6 Nxc2 {[%emt 0:06:31]} 38. Qxc2 {[%emt 0:02:02]} Bxd6 {[%emt 0:01:04]} 39. Rd1 {[%emt 0:01:06]} Rxf2 {[%emt 0:00:51]} 40. Qxf2 {[%emt 0:00:00]} Qg4+ {[%emt 0:00:00]} 41. Kh2 {[%emt 0:18:32]} Qxd1 {[%emt 0:00:09]} 42. Qg2 {[%emt 0:01:27]} Bxf4+ {[%emt 0:06:03]} 43. exf4 {[%emt 0:00:04]} Qh5+ {[%emt 0:03:40]} 44. Kg1 {[%emt 0:00:08]} Qc5+ {[%emt 0:00:05]} 45. Kh2 {[%emt 0:00:24]} Qe3 {[%emt 0:00:16]} 46. Qf1 {[%emt 0:01:20]} Kg7 {[%emt 0:01:29]} 47. Qa1+ {[%emt 0:00:17]} Kf7 {[%emt 0:01:55]} 48. Qe5 {[%emt 0:01:18]} Qf2+ {[%emt 0:01:25]} 49. Kh1 {[%emt 0:00:09]} Qf3+ 50. Kg1 {[%emt 0:00:11]} Qg4+ {[%emt 0:02:00]} 51. Kf2 {[%emt 0:00:35]} Qe6 {[%emt 0:01:13]} 52. Qc7+ {[%emt 0:02:00]} Qe7 {[%emt 0:00:14]} 53. Qc4+ {[%emt 0:00:24]} Kg7 {[%emt 0:01:42]} 54. Ke3 {[%emt 0:01:09]} h5 {[%emt 0:00:28]} 55. Qd4+ {[%emt 0:02:15]} Kh7 {[%emt 0:00:10]} 56. Qd1 {[%emt 0:02:56]} Qb4 {[%emt 0:00:22]} 57. Qd7+ {[%emt 0:00:39]} Kh6 {[%emt 0:00:39]} 58. Qf7 {[%emt 0:00:19]} Qe1+ {[%emt 0:03:02]} 59. Kd4 {[%emt 0:00:13]} Qb4+ {[%emt 0:00:26]} 60. Ke3 {[%emt 0:00:22]} Qe1+ {[%emt 0:00:02]} 61. Kd4 {[%emt 0:00:07]} Qb4+ {[%emt 0:00:02]} 62. Ke3 {[%emt 0:02:10]} h4 {[%emt 0:01:01]} 63. Qf6 {[%emt 0:00:11]} Qe1+ 0-1

[Event "POL-chT 2nd League-4 2020"]
[Site "Poronin"]
[Date "2020.09.08"]
[Round "4.4"]
[White "Stoppel, Mariusz"]
[Black "Helis, Tadeusz"]
[Result "0-1"]
[ECO "B23"]
[WhiteElo "1982"]
[BlackElo "2157"]
[Annotator "ChessBase"]
[PlyCount "124"]
[EventDate "2020.09.05"]
[EventType "team-tourn"]
[EventCountry "POL"]
[SourceTitle "playchess.com"]
[Source "ChessBase"]
[SourceQuality "1"]
[TimeControl "40/5400+30:900+30"]

1. e4 {[%emt 0:00:00]} c5 {[%emt 0:00:00]} 2. Nc3 {[%emt 0:00:55]} Nc6 {[%emt 0:00:00]} 3. Nge2 {[%emt 0:00:08]} e6 {[%emt 0:00:17]} 4. g3 {[%emt 0:01:50]} Nf6 {[%emt 0:00:23]} 5. Bg2 {[%emt 0:00:07]} a6 {[%emt 0:01:53]} 6. a4 {[%emt 0:00:34]} Qc7 {[%emt 0:04:23]} 7. O-O {[%emt 0:00:22]} Be7 {[%emt 0:00:19]} 8. d4 {[%emt 0:01:19]} cxd4 {[%emt 0:00:04]} 9. Nxd4 {[%emt 0:00:04]} O-O {[%emt 0:00:47]} 10. Nb3 {[%emt 0:03:57]} d6 {[%emt 0:09:07]} 11. f4 {[%emt 0:01:26]} Na5 {[%emt 0:01:55]} 12. Nxa5 {[%emt 0:09:31]} Qxa5 {[%emt 0:00:17]} 13. g4 {[%emt 0:00:28]} Re8 {[%emt 0:09:34]} 14. g5 {[%emt 0:09:07]} Nd7 {[%emt 0:00:09]} 15. Qf3 {[%emt 0:05:20]} Bf8 {[%emt 0:10:06]} 16. Kh1 {[%emt 0:03:30]} Qc7 {[%emt 0:11:45]} 17. Qg3 {[%emt 0:03:53]} b6 {[%emt 0:07:55]} 18. Qh4 {[%emt 0:11:22]} Bb7 {[%emt 0:03:52]} 19. Rf3 {[%emt 0:00:49]} Be7 {[%emt 0:00:15]} 20. Rh3 {[%emt 0:00:33]} Nf8 {[%emt 0:00:02]} 21. Be3 {[%emt 0:01:15]} b5 {[%emt 0:03:02]} 22. Rc1 {[%emt 0:08:56]} Qc4 {[%emt 0:03:48]} 23. f5 {[%emt 0:12:35]} exf5 {[%emt 0:05:45]} 24. exf5 {[%emt 0:01:01]} Bxg2+ {[%emt 0:03:15]} 25. Kxg2 {[%emt 0:00:04]} Qxh4 {[%emt 0:08:58]} 26. Rxh4 {[%emt 0:00:05]} bxa4 {[%emt 0:00:08]} 27. Nd5 {[%emt 0:02:10]} Bd8 {[%emt 0:00:06]} 28. Rf1 {[%emt 0:11:04]} Rb8 {[%emt 0:04:20]} 29. Bd4 {[%emt 0:03:18]} h6 {[%emt 0:09:07]} 30. Rg4 {[%emt 0:04:20]} hxg5 {[%emt 0:00:26]} 31. h4 {[%emt 0:00:24]} Nh7 {[%emt 0:00:30]} 32. hxg5 {[%emt 0:02:27]} Bxg5 {[%emt 0:02:25]} 33. f6 Re2+ {[%emt 0:00:07]} 34. Rf2 {[%emt 0:01:34]} Rxf2+ {[%emt 0:00:03]} 35. Kxf2 {[%emt 0:00:01]} g6 {[%emt 0:01:11]} 36. Rg1 {[%emt 0:02:17]} Rb5 {[%emt 0:01:02]} 37. c4 {[%emt 0:00:11]} Bh4+ {[%emt 0:00:05]} 38. Ke2 {[%emt 0:00:22]} Rb3 {[%emt 0:00:44]} 39. Rh1 {[%emt 0:01:10]} g5 {[%emt 0:00:01]} 40. Kd2 {[%emt 0:00:00]} Nf8 {[%emt 0:00:00]} 41. Ne7+ {[%emt 0:05:53]} Kh7 {[%emt 0:00:22]} 42. Nf5 {[%emt 0:01:20]} Ne6 {[%emt 0:01:29]} 43. Nxh4 {[%emt 0:00:45]} gxh4 {[%emt 0:00:10]} 44. Rxh4+ {[%emt 0:00:09]} Kg6 {[%emt 0:00:05]} 45. Bc3 {[%emt 0:00:47]} a3 {[%emt 0:01:18]} 46. bxa3 {[%emt 0:00:56]} Rxa3 {[%emt 0:00:03]} 47. Rh8 {[%emt 0:05:45]} Nc5 {[%emt 0:01:59]} 48. Rg8+ {[%emt 0:03:08]} Kf5 {[%emt 0:00:07]} 49. Kc2 {[%emt 0:00:40]} Ra2+ {[%emt 0:00:37]} 50. Kb1 {[%emt 0:00:18]} Ra4 {[%emt 0:00:15]} 51. Rf8 {[%emt 0:01:14]} Rxc4 {[%emt 0:00:06]} 52. Bb2 {[%emt 0:00:42]} Ke6 {[%emt 0:12:18]} 53. Re8+ {[%emt 0:00:12]} Kd5 {[%emt 0:00:23]} 54. Re7 {[%emt 0:00:19]} Ne4 {[%emt 0:00:09]} 55. Rxf7 {[%emt 0:00:52]} Nd2+ {[%emt 0:00:15]} 56. Ka2 {[%emt 0:00:03]} Ra4+ {[%emt 0:00:08]} 57. Ba3 {[%emt 0:00:08]} Nc4 {[%emt 0:00:02]} 58. Ra7 {[%emt 0:00:41]} Rxa3+ {[%emt 0:00:07]} 59. Kb1 {[%emt 0:00:00]} Rf3 {[%emt 0:00:10]} 60. f7 {[%emt 0:01:50]} a5 {[%emt 0:00:11]} 61. Kc2 {[%emt 0:00:37]} a4 {[%emt 0:01:07]} 62. Rxa4 {[%emt 0:00:35]} Rxf7 {[%emt 0:00:06]} 0-1

[Event "POL-chT 2nd League-4 2020"]
[Site "Poronin"]
[Date "2020.09.08"]
[Round "4.5"]
[White "Sochacki, Zenon"]
[Black "Mazalon, Mariusz"]
[Result "0-1"]
[ECO "E70"]
[WhiteElo "1885"]
[BlackElo "1948"]
[Annotator "ChessBase"]
[PlyCount "88"]
[EventDate "2020.09.05"]
[EventType "team-tourn"]
[EventCountry "POL"]
[SourceTitle "playchess.com"]
[Source "ChessBase"]
[SourceQuality "1"]
[TimeControl "40/5400+30:900+30"]

1. d4 {[%emt 0:00:00]} g6 {[%emt 0:00:10]} 2. c4 {[%emt 0:00:34]} Bg7 {[%emt 0:00:14]} 3. Nc3 {[%emt 0:00:15]} Nf6 {[%emt 0:03:10]} 4. e4 {[%emt 0:00:10]} O-O {[%emt 0:00:12]} 5. Bg5 {[%emt 0:00:39]} c6 {[%emt 0:00:38]} 6. Bd3 {[%emt 0:06:29]} d5 {[%emt 0:02:49]} 7. cxd5 {[%emt 0:01:54]} cxd5 {[%emt 0:00:08]} 8. e5 {[%emt 0:00:38]} Ne8 {[%emt 0:01:21]} 9. Qd2 {[%emt 0:02:32]} Nc6 {[%emt 0:00:33]} 10. Nge2 {[%emt 0:01:18]} f6 {[%emt 0:14:03]} 11. exf6 {[%emt 0:02:44]} Nxf6 {[%emt 0:02:05]} 12. f3 {[%emt 0:02:26]} Be6 {[%emt 0:01:45]} 13. h4 {[%emt 0:07:49]} Bf7 {[%emt 0:01:47]} 14. h5 {[%emt 0:06:48]} gxh5 {[%emt 0:01:26]} 15. O-O-O {[%emt 0:08:56]} Qa5 {[%emt 0:07:44]} 16. Bh6 {[%emt 0:02:08]} Nb4 {[%emt 0:04:51]} 17. Bb1 {[%emt 0:06:18]} Bg6 {[%emt 0:01:05]} 18. a3 {[%emt 0:01:03]} Nc6 {[%emt 0:03:23]} 19. Qg5 {[%emt 0:02:15]} Bxh6 {[%emt 0:04:37]} 20. Qxh6 {[%emt 0:00:11]} Kf7 {[%emt 0:04:04]} 21. Nf4 {[%emt 0:10:55]} Rg8 {[%emt 0:00:17]} 22. Nxg6 {[%emt 0:17:28]} hxg6 {[%emt 0:01:04]} 23. g4 {[%emt 0:00:32]} Rac8 {[%emt 0:08:36]} 24. g5 {[%emt 0:01:11]} Nd7 {[%emt 0:02:36]} 25. Qh7+ {[%emt 0:01:50]} Ke6 {[%emt 0:05:51]} 26. Rhe1+ {[%emt 0:03:31]} Kd6 {[%emt 0:01:16]} 27. Qf7 {[%emt 0:01:35]} Kc7 {[%emt 0:02:52]} 28. Qf4+ {[%emt 0:06:08]} Kb6 {[%emt 0:01:24]} 29. Bc2 {[%emt 0:03:47]} a6 {[%emt 0:01:16]} 30. Kb1 {[%emt 0:00:15]} Ka7 {[%emt 0:00:20]} 31. Re6 {[%emt 0:00:41]} Nf8 {[%emt 0:00:56]} 32. Ree1 {[%emt 0:00:53]} e6 {[%emt 0:01:02]} 33. Qf7 {[%emt 0:00:22]} Rh8 {[%emt 0:00:08]} 34. Bxg6 {[%emt 0:00:30]} Qd8 {[%emt 0:00:59]} 35. Qg7 {[%emt 0:01:07]} Nxg6 {[%emt 0:02:35]} 36. Qxg6 {[%emt 0:00:39]} Rg8 {[%emt 0:00:53]} 37. Qxh5 {[%emt 0:00:13]} Rxg5 {[%emt 0:00:18]} 38. Qf7 {[%emt 0:00:43]} Qh8 {[%emt 0:03:01]} 39. Qxe6 {[%emt 0:00:44]} Rg2 {[%emt 0:01:41]} 40. Qxd5 {[%emt 0:00:00]} Qh2 {[%emt 0:00:00]} 41. Qa2 {[%emt 0:14:14]} Na5 {[%emt 0:02:34]} 42. Ka1 {[%emt 0:01:27]} Rxc3 {[%emt 0:00:22]} 43. Kb1 Ka8 44. Rh1 Rc8 0-1

[Event "POL-chT 2nd League-4 2020"]
[Site "Poronin"]
[Date "2020.09.08"]
[Round "4.6"]
[White "Mackiewicz, Anna"]
[Black "Suchanek, Paulina"]
[Result "1-0"]
[ECO "A05"]
[WhiteElo "1858"]
[BlackElo "1555"]
[Annotator "NA"]
[PlyCount "77"]
[EventDate "2020.09.05"]
[EventType "team-tourn"]
[EventCountry "POL"]
[SourceTitle "playchess.com"]
[Source "ChessBase"]
[SourceQuality "1"]
[TimeControl "40/5400+30:900+30"]

1. Nf3 {[%emt 0:00:00]} Nf6 {[%emt 0:00:00]} 2. d4 {[%emt 0:00:00]} e6 {[%emt 0:00:00]} 3. g3 {[%emt 0:00:16]} b5 {[%emt 0:00:20]} 4. Bg2 {[%emt 0:00:44]} Bb7 {[%emt 0:00:08]} 5. O-O {[%emt 0:00:28]} Be7 {[%emt 0:00:46]} 6. b3 {[%emt 0:02:05]} d5 {[%emt 0:03:08]} 7. c4 {[%emt 0:01:28]} bxc4 {[%emt 0:08:56]} 8. bxc4 {[%emt 0:00:09]} O-O {[%emt 0:00:08]} 9. Qb3 {[%emt 0:03:24]} Ba6 {[%emt 0:03:57]} 10. Ne5 {[%emt 0:01:41]} c6 {[%emt 0:11:49]} 11. Bb2 {[%emt 0:02:32]} Qc7 {[%emt 0:04:20]} 12. Nd2 {[%emt 0:02:00]} Nbd7 {[%emt 0:05:23]} 13. Qa4 {[%emt 0:02:34]} Bb7 {[%emt 0:03:13]} 14. Rfc1 {[%emt 0:05:02]} Rfc8 {[%emt 0:17:39]} 15. cxd5 {[%emt 0:05:57]} exd5 {[%emt 0:01:56]} 16. Rab1 {[%emt 0:01:58]} c5 17. Nxd7 {[%emt 0:08:52]} Nxd7 {[%emt 0:15:36]} 18. dxc5 {[%emt 0:07:53]} Nxc5 {[%emt 0:00:04]} 19. Qg4 {[%emt 0:01:03]} Bf8 {[%emt 0:02:25]} 20. Bd4 {[%emt 0:23:34]} Qa5 {[%emt 0:05:15]} 21. Nf3 {[%emt 0:04:28]} Ne6 {[%emt 0:02:18]} 22. Rxc8 {[%emt 0:07:32]} Bxc8 {[%emt 0:00:05]} 23. Qh5 {[%emt 0:02:43]} Qxa2 {[%emt 0:08:07]} 24. Ra1 {[%emt 0:06:40]} Qxe2 {[%emt 0:01:33]} 25. Qxd5 {[%emt 0:00:13]} Nc7 {[%emt 0:01:36]} 26. Qc6 {[%emt 0:00:42]} Qe7 {[%emt 0:03:08]} 27. Be5 {[%emt 0:00:33]} Bd7 {[%emt 0:00:10]} 28. Qxc7 {[%emt 0:00:30]} Rc8 {[%emt 0:00:15]} 29. Qxa7 {[%emt 0:00:20]} Qe6 {[%emt 0:01:03]} 30. Re1 {[%emt 0:01:30]} Bc5 {[%emt 0:00:31]} 31. Qa1 {[%emt 0:01:00]} Qb6 {[%emt 0:00:17]} 32. Qb2 {[%emt 0:00:52]} Qg6 {[%emt 0:00:50]} 33. Nh4 {[%emt 0:02:22]} Qh6 {[%emt 0:00:03]} 34. Bd4 {[%emt 0:00:41]} Bd6 {[%emt 0:00:29]} 35. Be3 {[%emt 0:00:40]} Qe6 {[%emt 0:00:30]} 36. Rd1 {[%emt 0:00:55]} Be5 {[%emt 0:00:22]} 37. Qb7 {[%emt 0:00:26]} Ba4 {[%emt 0:00:25]} 38. Bd5 {[%emt 0:00:52]} Qe8 {[%emt 0:00:01]} 39. Bxf7+ {[%emt 0:00:44]} 1-0

[Event "POL-chT 2nd League-4 2020"]
[Site "Poronin"]
[Date "2020.09.08"]
[Round "4.7"]
[White "Smagalski, Slawomir"]
[Black "Daniel, Damian"]
[Result "1/2-1/2"]
[ECO "A27"]
[WhiteElo "1940"]
[BlackElo "2176"]
[Annotator "ChessBase"]
[PlyCount "113"]
[EventDate "2020.09.05"]
[EventType "team-tourn"]
[EventCountry "POL"]
[SourceTitle "playchess.com"]
[Source "ChessBase"]
[SourceQuality "1"]
[TimeControl "40/5400+30:900+30"]

1. Nf3 {[%emt 0:00:00]} Nc6 {[%emt 0:00:00]} 2. c4 {[%emt 0:00:04]} e5 {[%emt 0:00:00]} 3. Nc3 {[%emt 0:00:07]} Bc5 {[%emt 0:00:13]} 4. g3 {[%emt 0:00:17]} d6 {[%emt 0:00:12]} 5. Bg2 {[%emt 0:00:08]} a6 {[%emt 0:02:18]} 6. d3 {[%emt 0:01:12]} Nge7 {[%emt 0:00:20]} 7. O-O {[%emt 0:00:16]} O-O {[%emt 0:00:19]} 8. a3 {[%emt 0:00:18]} h6 {[%emt 0:02:47]} 9. b4 {[%emt 0:02:03]} Ba7 {[%emt 0:00:16]} 10. Bb2 {[%emt 0:00:24]} f5 {[%emt 0:01:44]} 11. e3 {[%emt 0:17:31]} Be6 {[%emt 0:05:24]} 12. Nd2 {[%emt 0:24:04]} Qd7 {[%emt 0:09:27]} 13. Nd5 {[%emt 0:01:56]} Ng6 {[%emt 0:10:21]} 14. Rc1 {[%emt 0:10:14]} Rae8 {[%emt 0:06:47]} 15. b5 {[%emt 0:01:41]} Nd8 {[%emt 0:02:21]} 16. a4 {[%emt 0:05:05]} f4 {[%emt 0:06:30]} 17. Qh5 {[%emt 0:13:31]} Ne7 {[%emt 0:11:27]} 18. gxf4 {[%emt 0:03:03]} Nxd5 {[%emt 0:07:43]} 19. Bxd5 {[%emt 0:00:53]} exf4 {[%emt 0:08:36]} 20. exf4 {[%emt 0:02:01]} c6 {[%emt 0:02:16]} 21. Bxe6+ {[%emt 0:04:21]} Nxe6 {[%emt 0:00:17]} 22. Qh3 {[%emt 0:05:01]} Qf7 {[%emt 0:05:19]} 23. Qf3 {[%emt 0:05:03]} Nxf4 {[%emt 0:02:53]} 24. Kh1 {[%emt 0:00:04]} Qd7 {[%emt 0:02:13]} 25. Ne4 {[%emt 0:01:04]} Nh3 {[%emt 0:04:14]} 26. Qg3 {[%emt 0:00:17]} Kh7 {[%emt 0:01:12]} 27. Bxg7 {[%emt 0:01:26]} Rxe4 {[%emt 0:06:11]} 28. Bxf8 {[%emt 0:00:15]} Rg4 {[%emt 0:01:54]} 29. Qf3 {[%emt 0:00:56]} Rf4 {[%emt 0:00:22]} 30. bxc6 {[%emt 0:01:07]} bxc6 {[%emt 0:00:11]} 31. Qg3 {[%emt 0:00:29]} Rxf8 {[%emt 0:00:07]} 32. d4 {[%emt 0:00:03]} Bxd4 {[%emt 0:01:07]} 33. f4 {[%emt 0:00:43]} Qf5 {[%emt 0:00:48]} 34. Rce1 {[%emt 0:00:31]} Rf7 {[%emt 0:00:13]} 35. Qf3 {[%emt 0:00:36]} Rg7 {[%emt 0:00:30]} 36. Re2 {[%emt 0:00:14]} Nxf4 {[%emt 0:00:51]} 37. Rg2 {[%emt 0:00:36]} Rxg2 {[%emt 0:00:14]} 38. Qxg2 {[%emt 0:00:01]} Nxg2 {[%emt 0:00:25]} 39. Rxf5 {[%emt 0:00:02]} Ne3 {[%emt 0:00:26]} 40. Ra5 {[%emt 0:00:00]} Nxc4 {[%emt 0:00:00]} 41. Rxa6 {[%emt 0:00:10]} Kg6 {[%emt 0:08:57]} 42. Rxc6 {[%emt 0:00:45]} Bc5 {[%emt 0:00:06]} 43. Kg2 {[%emt 0:01:10]} Kf5 {[%emt 0:00:05]} 44. Kg3 {[%emt 0:00:18]} Ke6 {[%emt 0:01:41]} 45. Rc8 {[%emt 0:00:22]} Kd7 {[%emt 0:01:07]} 46. Rh8 {[%emt 0:00:20]} Be3 {[%emt 0:00:14]} 47. Kf3 {[%emt 0:00:22]} Bg5 {[%emt 0:02:26]} 48. Ke4 {[%emt 0:00:22]} Kc7 {[%emt 0:01:01]} 49. h4 {[%emt 0:01:26]} Bxh4 {[%emt 0:01:07]} 50. Rxh6 {[%emt 0:00:05]} Bf2 {[%emt 0:01:13]} 51. Rh2 {[%emt 0:00:24]} Bc5 {[%emt 0:00:33]} 52. Rc2 {[%emt 0:01:11]} Na5 {[%emt 0:02:30]} 53. Kd5 {[%emt 0:00:20]} Kb6 {[%emt 0:01:07]} 54. Rb2+ {[%emt 0:01:06]} Kc7 {[%emt 0:00:13]} 55. Rc2 {[%emt 0:01:40]} Nc6 {[%emt 0:00:57]} 56. Rxc5 {[%emt 0:00:08]} dxc5 {[%emt 0:00:05]} 57. Kxc5 {[%emt 0:00:06]} 1/2-1/2